bitfinex/quotes_BTCUSD_20241001
["timestamp","ask_amount","ask_price","bid_price","bid_amount"]
[1727797282672,0.03999118,62696.0,62695.0,0.159502]
[1727797282915,0.0250009,62702.0,62701.0,0.159487]
[1727797283166,0.1564578,62702.0,62701.0,0.159487]
[1727797283415,0.159472,62707.0,62703.0,0.15948]
[1727797283638,0.1564578,62706.0,62692.0,0.04760659]
[1727797283885,0.1564578,62706.0,62702.0,0.318966]
[1727797284114,0.1564578,62706.0,62703.0,0.159481]
[1727797284356,0.1564578,62706.0,62698.0,0.318988]
[1727797284357,0.15948,62704.0,62698.0,0.318988]
[1727797284600,0.005,62696.0,62694.0,0.04760659]
[1727797284818,0.014,62696.0,62695.0,0.159502]
[1727797285040,0.009,62696.0,62693.0,0.159505]
[1727797285316,0.318984,62699.0,62694.0,0.04762396]
[1727797285543,0.1564578,62698.0,62695.0,0.04762396]
[1727797285766,0.1564578,62698.0,62694.0,0.159502]
[1727797285767,0.1564578,62698.0,62697.0,0.159497]
[1727797285995,0.20400008,62698.0,62694.0,0.04762396]
[1727797286227,0.005,62696.0,62695.0,0.159501]
[1727797286477,0.014,62696.0,62695.0,0.20712496]
[1727797286688,0.014,62696.0,62695.0,0.159501]
[1727797287128,0.014,62696.0,62694.0,0.159503]
[1727797287802,0.02985323,62696.0,62694.0,0.159503]
[1727797288044,0.014,62696.0,62695.0,0.159502]
[1727797288270,0.009,62696.0,62695.0,0.159502]
[1727797288519,0.02499823,62697.0,62696.0,0.159499]
[1727797288752,0.02499823,62697.0,62693.0,0.319014]
[1727797288974,0.02499823,62697.0,62691.0,0.04762396]
[1727797288975,0.02024902,62696.0,62691.0,0.04762396]
[1727797289196,0.48376193,62697.0,62695.0,0.001644]
[1727797289417,0.173501,62696.0,62695.0,0.001644]
[1727797289881,0.014,62696.0,62695.0,0.001644]
[1727797290103,0.1106197,62696.0,62695.0,0.001644]
[1727797290599,0.005,62696.0,62695.0,0.161146]
[1727797291057,0.005,62696.0,62695.0,0.67364317]
[1727797291271,0.01,62697.0,62696.0,0.259499]
[1727797291530,0.01,62697.0,62696.0,0.48403543]
[1727797291748,0.23945404,62705.0,62704.0,0.159479]
[1727797291970,0.000822,62707.0,62704.0,0.159479]
[1727797291971,0.000822,62707.0,62706.0,0.159474]
[1727797293228,0.003822,62707.0,62706.0,0.159474]
[1727797293467,0.002822,62707.0,62706.0,0.159474]
[1727797294805,0.003822,62707.0,62706.0,0.159474]
[1727797295053,0.000822,62707.0,62706.0,0.159474]
[1727797295265,0.04958081,62707.0,62706.0,0.159474]
[1727797295506,0.000822,62707.0,62706.0,0.159474]
[1727797295749,0.000822,62707.0,62698.0,0.01001347]
[1727797295750,0.000822,62707.0,62702.0,0.318968]
[1727797296004,0.32730413,62704.0,62699.0,0.159491]
[1727797296232,0.32730413,62704.0,62695.0,0.001644]
[1727797296233,0.4754258,62703.0,62695.0,0.001644]
[1727797296458,0.32730413,62698.0,62695.0,0.001644]
[1727797296684,0.159499,62696.0,62695.0,0.001644]
[1727797296929,0.48376193,62698.0,62695.0,0.001644]
[1727797297169,0.48376193,62698.0,62696.0,0.159498]
[1727797297405,0.48376193,62698.0,62697.0,0.159497]
[1727797297663,0.1564578,62698.0,62697.0,0.159497]
[1727797298356,0.02499668,62699.0,62698.0,0.159494]
[1727797298790,0.014,62704.0,62695.0,0.001644]
[1727797299030,0.2297268,62703.0,62702.0,0.159483]
[1727797299305,0.2297268,62703.0,62700.0,0.318975]
[1727797299486,0.2297268,62703.0,62695.0,0.001644]
[1727797299487,0.009,62698.0,62696.0,0.318997]
[1727797299712,0.2297268,62703.0,62695.0,0.001644]
[1727797299713,0.48376193,62697.0,62695.0,0.001644]
[1727797300148,0.48376193,62697.0,62695.0,0.161146]
[1727797300396,0.58048532,62697.0,62696.0,0.159499]
[1727797300680,0.25318119,62697.0,62696.0,0.159499]
[1727797300944,0.005,62699.0,62698.0,0.159494]
[1727797301161,0.005,62699.0,62698.0,0.259494]
[1727797301907,0.01,62704.0,62703.0,0.159482]
[1727797302109,0.01,62704.0,62703.0,0.259482]
[1727797302600,0.000822,62707.0,62703.0,0.3758578]
[1727797302863,0.23945404,62722.0,62697.0,0.24145404]
[1727797302864,0.23945404,62722.0,62721.0,0.259436]
[1727797303085,0.23945404,62722.0,62721.0,0.4158938]
[1727797303540,0.04773943,62731.0,62730.0,0.259413]
[1727797303790,0.28719347,62732.0,62731.0,0.25941]
[1727797304052,0.33419448,62732.0,62731.0,0.25941]
[1727797304264,0.04700101,62732.0,62731.0,0.25941]
[1727797304487,0.04856543,62733.0,62732.0,0.159408]
[1727797304704,0.09556459,62733.0,62732.0,0.159408]
[1727797305124,0.14330002,62733.0,62732.0,0.159408]
[1727797305357,0.14330002,62733.0,62732.0,0.39886204]
[1727797305581,0.04782116,62733.0,62732.0,0.4158658]
[1727797306064,0.000822,62733.0,62732.0,0.4969658]
[1727797306066,0.04774616,62736.0,62733.0,0.105]
[1727797306317,0.97252242,62741.0,62740.0,0.264387]
[1727797306550,0.04739602,62741.0,62740.0,0.79013893]
[1727797306782,0.000822,62755.0,62740.0,0.79013893]
[1727797306783,0.06388421,62751.0,62750.0,0.017]
[1727797307015,0.12355404,62752.0,62751.0,0.38945]
[1727797307261,0.12018648,62755.0,62754.0,0.308342]
[1727797307503,0.23945404,62764.0,62763.0,0.174329]
[1727797307727,0.16113299,62771.0,62767.0,0.266319]
[1727797307964,0.00303978,62768.0,62767.0,0.4227768]
[1727797308450,0.00303978,62768.0,62767.0,0.4547668]
[1727797308697,0.00303978,62768.0,62767.0,0.4477668]
[1727797308915,0.00303978,62768.0,62767.0,0.4157768]
[1727797310317,0.00403978,62768.0,62767.0,0.4167768]
[1727797310532,0.00403978,62768.0,62767.0,0.4237768]
[1727797311011,0.00403978,62768.0,62767.0,0.4167768]
[1727797311244,0.00403978,62768.0,62767.0,0.4257768]
[1727797311717,0.00303978,62768.0,62767.0,0.4247768]
[1727797311932,0.00403978,62768.0,62767.0,0.4257768]
[1727797312651,0.00403978,62768.0,62767.0,0.4167768]
[1727797313145,0.00303978,62768.0,62767.0,0.4157768]
[1727797313367,0.00303978,62768.0,62767.0,0.259319]
[1727797313616,0.00303978,62768.0,62767.0,0.268319]
[1727797313617,0.00503978,62768.0,62767.0,0.268319]
[1727797314103,0.01194643,62768.0,62767.0,0.260319]
[1727797314325,0.01194643,62768.0,62767.0,0.166319]
[1727797314326,0.00503978,62768.0,62767.0,0.166319]
[1727797314562,0.08904643,62768.0,62767.0,0.166319]
[1727797314786,0.08804643,62768.0,62767.0,0.001]
[1727797315228,0.24736243,62768.0,62767.0,0.001]
[1727797315481,0.08786843,62768.0,62742.0,0.005]
[1727797315710,0.08786843,62768.0,62767.0,0.001]
[1727797315711,0.32343865,62768.0,62767.0,0.001]
[1727797315959,0.33962471,62768.0,62767.0,0.001]
[1727797316224,0.49608251,62768.0,62767.0,0.001]
[1727797316447,0.159329,62763.0,62755.0,0.318695]
[1727797316688,0.33576651,62768.0,62737.0,0.03699]
[1727797316689,0.159344,62757.0,62748.0,0.55818704]
[1727797316912,0.50668071,62758.0,62756.0,0.23945404]
[1727797317165,0.50668071,62758.0,62754.0,0.159352]
[1727797317396,0.14314973,62755.0,62754.0,0.159352]
[1727797317634,0.72006944,62758.0,62752.0,0.159356]
[1727797317881,0.66770189,62758.0,62748.0,0.23945404]
[1727797318099,0.50668071,62758.0,62757.0,0.159344]
[1727797318324,0.50668071,62758.0,62749.0,0.318729]
[1727797318325,0.14313935,62758.0,62753.0,0.318709]
[1727797318544,0.09541902,62755.0,62754.0,0.478054]
[1727797318791,0.07155547,62756.0,62755.0,0.159349]
[1727797319014,0.1585,62761.0,62753.0,0.318705]
[1727797319015,0.004,62757.0,62756.0,0.159347]
[1727797319911,0.14510799,62777.0,62769.0,5.2630389]
[1727797320143,1.04978748,62770.0,62769.0,5.2630389]
[1727797320363,0.50750271,62770.0,62769.0,5.2630389]
[1727797320603,0.09622703,62770.0,62769.0,5.4223529]
[1727797320847,0.000822,62770.0,62769.0,5.4223529]
[1727797321501,0.013822,62770.0,62769.0,5.4233529]
[1727797321940,0.000822,62770.0,62769.0,5.4223529]
[1727797322175,0.000822,62770.0,62769.0,5.4233529]
[1727797322176,0.008822,62770.0,62769.0,5.4233529]
[1727797322403,0.013822,62770.0,62769.0,5.4233529]
[1727797322874,0.008822,62770.0,62769.0,5.4233529]
[1727797323342,0.008822,62770.0,62769.0,5.5808107]
[1727797323556,0.000822,62770.0,62769.0,5.5798107]
[1727797323796,0.001822,62770.0,62769.0,5.5798107]
[1727797324070,0.0004187,62773.0,62769.0,5.6577967]
[1727797324292,0.0004,62779.0,62769.0,5.6577967]
[1727797324293,0.0004,62779.0,62778.0,0.76597171]
[1727797324535,0.0004,62779.0,62778.0,0.93742951]
[1727797324763,0.0004,62779.0,62778.0,0.96941951]
[1727797324764,1e-06,62779.0,62778.0,0.96941951]
[1727797324986,1e-06,62780.0,62779.0,0.306278]
[1727797325277,0.23945404,62792.0,62791.0,0.259258]
[1727797325521,0.23945404,62792.0,62791.0,0.4177158]
[1727797325767,0.24413655,62805.0,62792.0,0.1]
[1727797326015,0.24413655,62805.0,62798.0,0.25924]
[1727797326523,0.00468251,62805.0,62798.0,0.25924]
[1727797326992,0.00468251,62805.0,62798.0,0.4156978]
[1727797327226,0.00468251,62805.0,62798.0,0.4176978]
[1727797327671,0.00468251,62805.0,62798.0,0.4236978]
[1727797327906,0.00468251,62805.0,62798.0,0.4176978]
[1727797328377,0.00468251,62805.0,62804.0,0.259225]
[1727797328592,0.00468251,62805.0,62804.0,0.92236351]
[1727797329095,0.19415404,62816.0,62815.0,0.159197]
[1727797329329,0.01,62817.0,62816.0,0.259195]
[1727797329550,0.01,62817.0,62816.0,0.92733351]
[1727797329791,0.01,62817.0,62816.0,0.92933351]
[1727797330300,0.0004,62839.0,62830.0,0.296149]
[1727797330565,0.23945404,62836.0,62835.0,0.259146]
[1727797330805,0.22114088,62843.0,62840.0,0.318263]
[1727797331058,0.22114088,62843.0,62842.0,0.159129]
[1727797331321,0.0004,62859.0,62842.0,0.159129]
[1727797331322,0.0004,62859.0,62849.0,0.23945404]
[1727797331577,0.0004,62859.0,62854.0,0.264098]
[1727797331825,0.0004,62859.0,62854.0,0.77077871]
[1727797332072,0.0004,62859.0,62854.0,0.81893493]
[1727797332568,0.0004,62859.0,62854.0,0.85092493]
[1727797332784,1e-06,62855.0,62854.0,1.26671623]
[1727797333003,1e-06,62855.0,62854.0,1.22628651]
[1727797333273,1e-06,62855.0,62854.0,0.96922651]
[1727797333545,0.0004,62859.0,62858.0,0.159088]
[1727797335152,0.0004,62859.0,62858.0,0.3185458]
[1727797335381,0.0004,62859.0,62858.0,0.4525358]
[1727797335618,0.0004,62859.0,62858.0,0.4655358]
[1727797335860,0.00288857,62868.0,62867.0,0.274065]
[1727797336096,0.00288857,62868.0,62867.0,0.97119351]
[1727797336527,0.00288857,62868.0,62867.0,0.4155228]
[1727797337281,0.00388857,62868.0,62867.0,0.4205228]
[1727797338447,0.00388857,62868.0,62867.0,0.3205228]
[1727797338691,0.00288857,62868.0,62867.0,0.3235228]
[1727797338910,0.00388857,62868.0,62867.0,0.3275228]
[1727797339125,0.00471057,62868.0,62867.0,0.3275228]
[1727797339417,0.00471057,62868.0,62867.0,0.171065]
[1727797339634,0.00371057,62868.0,62867.0,0.167065]
[1727797339856,0.00371057,62868.0,62867.0,0.175065]
[1727797340089,0.00371057,62868.0,62867.0,0.178065]
[1727797340090,0.00471057,62868.0,62867.0,0.178065]
[1727797340966,0.00471057,62868.0,62867.0,0.47651812]
[1727797340967,0.00371057,62868.0,62867.0,0.47651812]
[1727797341401,0.23945404,62885.0,62868.0,0.005]
[1727797341652,0.23945404,62885.0,62878.0,0.259038]
[1727797342144,0.02492283,62882.0,62878.0,0.259038]
[1727797342389,0.00051098,62892.0,62878.0,0.259038]
[1727797342631,0.00051098,62892.0,62878.0,0.29920134]
[1727797342865,0.00051098,62892.0,62878.0,0.46549501]
[1727797343098,0.00051098,62892.0,62878.0,0.47432167]
[1727797343336,0.00051098,62892.0,62878.0,0.46432167]
[1727797343563,0.23945404,62889.0,62878.0,0.45732167]
[1727797344256,0.23945404,62889.0,62879.0,0.291025]
[1727797344538,0.23945404,62889.0,62879.0,0.4474828]
[1727797345218,0.00051098,62892.0,62879.0,0.4544828]
[1727797345219,0.02491758,62882.0,62879.0,0.4544828]
[1727797345665,0.02491758,62882.0,62879.0,0.4664828]
[1727797346113,0.02491758,62882.0,62879.0,0.4524828]
[1727797346351,0.02491758,62882.0,62879.0,0.4684828]
[1727797346589,0.001822,62880.0,62879.0,0.4804828]
[1727797347074,0.000822,62880.0,62879.0,0.4664828]
[1727797347290,0.02491758,62882.0,62881.0,0.29802]
[1727797347503,0.02491758,62882.0,62881.0,0.4544778]
[1727797348169,0.02491758,62882.0,62881.0,0.4524778]
[1727797348660,5.8e-07,62882.0,62881.0,0.4784778]
[1727797348880,0.00051098,62892.0,62891.0,0.159005]
[1727797349092,0.00051098,62892.0,62891.0,0.3154628]
[1727797349578,0.1503,62911.0,62898.0,0.158987]
[1727797349798,0.1503,62911.0,62898.0,0.3154448]
[1727797350499,0.00389169,62909.0,62898.0,0.55489884]
[1727797350712,0.00389169,62909.0,62898.0,0.4154448]
[1727797351205,0.1513,62907.0,62898.0,0.16884543]
[1727797351427,0.0819,62899.0,62897.0,0.158989]
[1727797351648,0.0819,62899.0,62888.0,0.159011]
[1727797351865,0.0819,62899.0,62891.0,0.25145404]
[1727797352136,0.0819,62899.0,62885.0,0.1564578]
[1727797352137,0.0819,62899.0,62898.0,0.002]
[1727797352570,0.3973428,62899.0,62898.0,0.001]
[1727797352795,0.3973428,62899.0,62896.0,0.158991]
[1727797352796,0.0819,62899.0,62896.0,0.158991]
[1727797353253,0.06337171,62906.0,62892.0,0.318004]
[1727797353518,0.1615,62892.0,62888.0,0.001]
[1727797353740,0.15901,62889.0,62888.0,0.001]
[1727797353953,0.1564578,62891.0,62888.0,0.001]
[1727797354416,0.3154648,62891.0,62888.0,0.001]
[1727797354677,0.15901,62889.0,62888.0,0.001]
[1727797354889,0.15901,62889.0,62878.0,0.318072]
[1727797355102,0.1564578,62891.0,62884.0,0.39847504]
[1727797355103,0.159008,62890.0,62884.0,0.39847504]
[1727797355328,0.159008,62890.0,62879.0,0.318069]
[1727797355329,0.1564578,62890.0,62885.0,0.159019]
[1727797355537,0.1564578,62890.0,62888.0,0.001]
[1727797355989,0.3284678,62889.0,62888.0,0.001]
[1727797356206,0.075,62888.0,62878.0,0.318075]
[1727797356421,0.159019,62886.0,62884.0,0.23945404]
[1727797356665,0.159025,62883.0,62877.0,0.39849304]
[1727797356909,0.159025,62883.0,62871.0,0.318109]
[1727797356910,0.159037,62879.0,62872.0,0.159052]
[1727797357140,0.50668071,62875.0,62857.0,0.318182]
[1727797357429,0.50668071,62875.0,62863.0,0.318151]
[1727797357430,0.1564578,62874.0,62863.0,0.318151]
[1727797357650,0.159057,62871.0,62864.0,0.159072]
[1727797357896,0.1564578,62871.0,62860.0,0.318164]
[1727797358143,0.318108,62872.0,62855.0,0.23945404]
[1727797358144,0.159067,62867.0,62862.0,0.23945404]
[1727797358397,0.159067,62867.0,62858.0,0.23945404]
[1727797358398,0.1564578,62866.0,62858.0,0.23945404]
[1727797358610,0.1564578,62866.0,62845.0,0.318238]
[1727797358611,0.159083,62860.0,62845.0,0.318238]
[1727797358835,0.3155408,62860.0,62843.0,0.318249]
[1727797359077,0.3155408,62860.0,62848.0,0.39856604]
[1727797359325,0.159103,62853.0,62848.0,0.23945404]
[1727797359552,0.1476,62852.0,62848.0,0.23945404]
[1727797359798,0.0766,62850.0,62848.0,0.23945404]
[1727797360016,0.235711,62850.0,62841.0,0.23945404]
[1727797360238,0.235711,62850.0,62838.0,0.318276]
[1727797360239,0.159121,62846.0,62838.0,0.159138]
[1727797360465,0.1564578,62845.0,62841.0,0.23945404]
[1727797360679,0.0766,62850.0,62849.0,0.159111]
[1727797361408,0.0766,62850.0,62846.0,0.318235]
[1727797361628,0.0766,62850.0,62849.0,0.159111]
[1727797361848,0.0766,62850.0,62846.0,0.318235]
[1727797361849,0.0766,62850.0,62846.0,0.159117]
[1727797362073,0.0766,62850.0,62841.0,0.318261]
[1727797362074,0.0766,62850.0,62844.0,0.318244]
[1727797362295,0.2330578,62850.0,62838.0,0.318274]
[1727797362544,0.159117,62847.0,62834.0,0.23945404]
[1727797362760,0.159117,62847.0,62839.0,0.318273]
[1727797362761,0.1564578,62847.0,62839.0,0.318273]
[1727797362992,0.55771004,62843.0,62832.0,0.318308]
[1727797363252,0.55771004,62843.0,62827.0,0.159166]
[1727797363253,0.159152,62833.0,62827.0,0.159166]
[1727797363473,0.50668071,62835.0,62825.0,0.24109404]
[1727797363474,0.1564578,62832.0,62825.0,0.24109404]
[1727797363740,0.66584371,62829.0,62825.0,0.00164]
[1727797363945,0.159169,62826.0,62825.0,0.00164]
[1727797364175,0.46911255,62826.0,62825.0,0.00164]
[1727797364385,0.3040578,62826.0,62825.0,0.00164]
[1727797365533,0.3180578,62826.0,62825.0,0.00164]
[1727797365744,0.4712268,62826.0,62825.0,0.00164]
[1727797365960,0.4852268,62826.0,62825.0,0.00164]
[1727797366446,0.4632268,62826.0,62825.0,0.00164]
[1727797366683,0.61967358,62826.0,62825.0,0.00164]
[1727797366904,0.3090578,62826.0,62825.0,0.160812]
[1727797367121,0.3130578,62826.0,62825.0,0.160812]
[1727797368100,0.3080578,62826.0,62825.0,0.160812]
[1727797368543,0.1656,62826.0,62825.0,0.160812]
[1727797368761,0.1476,62826.0,62825.0,0.160812]
[1727797369185,0.1636,62826.0,62825.0,0.160812]
[1727797369445,0.1596,62826.0,62825.0,0.160812]
[1727797369669,0.23945404,62839.0,62829.0,0.318323]
[1727797369892,0.23945404,62839.0,62838.0,0.159139]
[1727797370148,0.1468,62853.0,62850.0,0.159108]
[1727797370430,0.39591184,62851.0,62850.0,0.159108]
[1727797370653,0.1564578,62851.0,62850.0,0.159108]
[1727797371148,0.1468,62853.0,62852.0,0.159103]
[1727797371848,0.0794,62864.0,62863.0,0.159076]
[1727797372117,0.1524,62867.0,62862.0,0.318156]
[1727797372355,0.1524,62867.0,62866.0,0.159068]
[1727797372591,0.23945404,62866.0,62865.0,0.477212]
[1727797372819,0.18397864,62874.0,62869.0,0.159058]
[1727797373064,0.159061,62869.0,62864.0,0.159071]
[1727797373315,0.56189538,62868.0,62862.0,0.159077]
[1727797373557,0.56189538,62868.0,62859.0,0.23945404]
[1727797373558,0.24376638,62868.0,62859.0,0.23945404]
[1727797373804,0.159072,62865.0,62859.0,0.23945404]
[1727797374040,0.159072,62865.0,62861.0,0.15908]
[1727797374041,0.22855514,62864.0,62861.0,0.15908]
[1727797374286,0.22855514,62864.0,62858.0,0.23945404]
[1727797374497,0.1564578,62864.0,62863.0,0.159076]
[1727797375834,0.008,62864.0,62863.0,0.159076]
[1727797376054,0.1644578,62864.0,62863.0,0.159076]
[1727797376977,0.1734578,62864.0,62863.0,0.159076]
[1727797377214,0.1734578,62864.0,62863.0,0.154076]
[1727797377649,0.1644578,62864.0,62863.0,0.154076]
[1727797377933,0.1564578,62864.0,62863.0,0.154076]
[1727797378125,0.17859676,62864.0,62863.0,0.154076]
[1727797378604,0.17941876,62864.0,62863.0,0.154076]
[1727797378817,0.1612798,62864.0,62863.0,0.154076]
[1727797379029,0.1642798,62864.0,62863.0,0.154076]
[1727797379497,0.1642798,62864.0,62849.0,0.15911]
[1727797379498,0.0786,62856.0,62849.0,0.15911]
[1727797379740,0.1564578,62855.0,62854.0,0.23945404]
[1727797379959,0.1564578,62855.0,62847.0,0.159115]
[1727797380188,0.159126,62844.0,62837.0,0.159141]
[1727797380409,0.50668071,62850.0,62838.0,0.23945404]
[1727797380410,0.005,62850.0,62838.0,0.23945404]
[1727797380670,0.23945404,62845.0,62836.0,0.318284]
[1727797380905,0.3155828,62844.0,62837.0,0.159141]
[1727797381151,0.005,62841.0,62834.0,0.23945404]
[1727797381393,0.1564578,62840.0,62834.0,0.39860204]
[1727797381623,0.1564578,62840.0,62825.0,0.00164]
[1727797381624,0.1564578,62840.0,62836.0,0.159144]
[1727797381884,0.1564578,62840.0,62834.0,0.159148]
[1727797382144,0.017,62830.0,62827.0,0.318331]
[1727797382398,0.015,62828.0,62827.0,0.159167]
[1727797382650,0.017,62828.0,62827.0,0.159167]
[1727797382871,0.015,62831.0,62825.0,0.63668]
[1727797383104,0.005,62831.0,62828.0,0.318328]
[1727797383330,0.015,62831.0,62830.0,0.159159]
[1727797383548,0.015,62831.0,62830.0,0.477477]
[1727797383992,0.005,62833.0,62831.0,0.318313]
[1727797384206,0.005,62834.0,62832.0,0.318308]
[1727797384419,0.005,62834.0,62833.0,0.159152]
[1727797385333,0.005,62834.0,62832.0,0.159154]
[1727797385334,0.001,62833.0,62832.0,0.159154]
[1727797385570,0.005,62834.0,62833.0,0.159152]
[1727797385571,0.015,62834.0,62833.0,0.159152]
[1727797385802,0.015,62834.0,62829.0,0.159162]
[1727797385803,0.017,62830.0,62829.0,0.159162]
[1727797386301,0.015,62827.0,62826.0,0.477501]
[1727797386516,0.017,62827.0,62826.0,0.477501]
[1727797386743,0.017,62827.0,62826.0,0.318334]
[1727797386744,0.005,62827.0,62826.0,0.318334]
[1727797386982,0.005,62833.0,62832.0,0.159154]
[1727797387222,0.25445404,62833.0,62832.0,0.159154]
[1727797387466,0.005,62833.0,62832.0,0.159154]
[1727797387692,0.005,62834.0,62833.0,0.159152]
[1727797387912,0.23945404,62845.0,62818.0,0.318379]
[1727797387913,0.005,62824.0,62823.0,0.259177]
[1727797388625,0.005,62824.0,62823.0,0.159177]
[1727797390204,0.005,62824.0,62822.0,0.318355]
[1727797390205,0.005,62823.0,62822.0,0.477534]
[1727797390464,0.012,62834.0,62831.0,0.159157]
[1727797390726,0.012,62834.0,62818.0,0.3284345]
[1727797390727,0.23945404,62835.0,62834.0,0.92497471]
[1727797390965,0.23945404,62835.0,62834.0,1.23858151]
[1727797391217,0.23945404,62845.0,62844.0,0.159124]
[1727797391682,0.23945404,62853.0,62843.0,0.318252]
[1727797391683,0.005,62849.0,62848.0,0.159114]
[1727797391935,0.0404454,62849.0,62848.0,0.159114]
[1727797392406,0.0424454,62849.0,62848.0,0.159114]
[1727797392628,0.005,62840.0,62839.0,0.577405]
[1727797393584,0.005,62840.0,62839.0,0.477405]
[1727797393816,0.005,62840.0,62839.0,0.577405]
[1727797394273,0.008,62840.0,62839.0,0.577405]
[1727797394513,0.006,62840.0,62839.0,0.577405]
[1727797395617,0.006,62840.0,62839.0,0.259136]
[1727797395618,0.008,62840.0,62839.0,0.259136]
[1727797395860,0.018,62840.0,62839.0,0.259136]
[1727797396068,0.015,62840.0,62839.0,0.259136]
[1727797396319,0.016,62840.0,62839.0,0.259136]
[1727797396799,0.018,62840.0,62839.0,0.259136]
[1727797397272,0.022,62840.0,62839.0,0.259136]
[1727797397514,0.012,62840.0,62839.0,0.259136]
[1727797397755,0.018,62840.0,62839.0,0.259136]
[1727797397969,0.019,62840.0,62839.0,0.259136]
[1727797398185,0.011,62840.0,62839.0,0.259136]
[1727797398440,0.016,62840.0,62839.0,0.259136]
[1727797399316,0.017,62840.0,62839.0,0.259136]
[1727797399531,0.016,62840.0,62839.0,0.259136]
[1727797399767,0.015,62840.0,62839.0,0.259136]
[1727797400002,0.001,62840.0,62839.0,0.259136]
[1727797400556,1e-06,62840.0,62839.0,0.94527451]
[1727797400817,0.23945404,62862.0,62839.0,0.94527451]
[1727797400818,0.23945404,62855.0,62854.0,0.314088]
[1727797401083,0.23945404,62862.0,62861.0,0.314071]
[1727797401084,0.2249065,62862.0,62861.0,0.314071]
[1727797401304,0.2249065,62862.0,62861.0,0.4705288]
[1727797401524,0.000822,62864.0,62863.0,0.314066]
[1727797401736,0.000822,62864.0,62863.0,0.4705238]
[1727797402894,0.001822,62864.0,62863.0,0.4775238]
[1727797403132,0.001822,62864.0,62863.0,0.77245993]
[1727797403376,0.23945404,62879.0,62878.0,0.76571871]
[1727797403638,0.23945404,62879.0,62878.0,0.92217651]
[1727797404074,0.005,62887.0,62886.0,0.259017]
[1727797404302,0.015,62890.0,62889.0,0.15901]
[1727797404520,0.01,62890.0,62889.0,0.25901]
[1727797404739,0.1606,62895.0,62889.0,0.2564578]
[1727797404994,0.1656,62895.0,62894.0,0.158997]
[1727797405224,0.005,62895.0,62894.0,0.258997]
[1727797406375,0.005,62898.0,62897.0,0.15899]
[1727797406589,0.00582,62899.0,62898.0,0.158987]
[1727797406828,0.01582,62899.0,62898.0,0.158987]
[1727797407254,0.01782,62899.0,62898.0,0.158987]
[1727797409055,0.01882,62899.0,62898.0,0.158987]
[1727797409277,0.01782,62899.0,62898.0,0.158987]
[1727797409985,0.01782,62899.0,62891.0,0.1]
[1727797409986,0.005,62892.0,62891.0,0.1]
[1727797410240,0.005,62892.0,62891.0,0.259005]
[1727797410464,0.005,62883.0,62882.0,0.159028]
[1727797410939,0.01,62888.0,62882.0,0.4745128]
[1727797411160,0.01,62888.0,62887.0,0.159015]
[1727797411161,0.015,62888.0,62887.0,0.159015]
[1727797411418,0.015,62888.0,62879.0,0.318068]
[1727797411419,0.007,62880.0,62879.0,0.477103]
[1727797411654,0.005,62876.0,62867.0,0.23945404]
[1727797411896,0.002,62880.0,62863.0,0.50668071]
[1727797411897,0.005,62869.0,62868.0,0.477189]
[1727797412134,0.005,62869.0,62868.0,0.159063]
[1727797412375,0.005,62870.0,62869.0,0.15906]
[1727797412618,0.017,62870.0,62869.0,0.15906]
[1727797412830,0.005,62870.0,62869.0,0.15906]
[1727797413042,0.015,62870.0,62869.0,0.15906]
[1727797413481,0.005,62860.0,62859.0,0.159086]
[1727797414433,0.005,62865.0,62859.0,0.1564578]
[1727797414671,0.005,62865.0,62864.0,0.259073]
[1727797415131,0.005,62865.0,62864.0,0.260717]
[1727797415601,0.015,62865.0,62864.0,0.160717]
[1727797415848,0.002,62868.0,62867.0,0.159065]
[1727797415849,0.005,62868.0,62867.0,0.159065]
[1727797416061,0.015,62868.0,62867.0,0.159065]
[1727797416752,0.017,62868.0,62867.0,0.1]
[1727797417227,0.017,62868.0,62867.0,0.259065]
[1727797417466,0.015,62868.0,62867.0,0.259065]
[1727797417913,0.005,62868.0,62867.0,0.261065]
[1727797418127,0.015822,62870.0,62869.0,0.15906]
[1727797418796,0.017822,62870.0,62869.0,0.15906]
[1727797419004,0.005822,62870.0,62869.0,0.15906]
[1727797420153,0.005822,62870.0,62869.0,0.76874071]
[1727797420154,0.000822,62870.0,62869.0,0.76874071]
[1727797420607,0.000822,62870.0,62869.0,0.92519851]
[1727797421094,0.001822,62870.0,62869.0,0.92819851]
[1727797421339,0.001822,62870.0,62869.0,0.4215178]
[1727797421824,0.001822,62870.0,62869.0,0.92819851]
[1727797422055,0.001822,62870.0,62869.0,0.937452]
[1727797422516,0.001822,62870.0,62869.0,0.941452]
[1727797422753,0.001822,62870.0,62869.0,0.43477129]
[1727797422987,0.006822,62870.0,62869.0,0.27831349]
[1727797423204,0.001822,62870.0,62869.0,0.7849942]
[1727797423441,0.001822,62870.0,62869.0,0.941452]
[1727797424676,0.001822,62870.0,62869.0,1.111732]
[1727797424677,0.00054362,62870.0,62869.0,1.111732]
[1727797424911,0.00154362,62870.0,62869.0,1.114732]
[1727797425153,6.2e-07,62870.0,62869.0,1.110732]
[1727797425382,0.23945404,62880.0,62879.0,0.291025]
[1727797425599,0.23945404,62880.0,62879.0,0.95416351]
[1727797425816,0.005,62886.0,62885.0,0.25902]
[1727797426049,0.23945404,62895.0,62885.0,0.25902]
[1727797426050,0.24445404,62895.0,62891.0,0.318007]
[1727797426271,0.23945404,62895.0,62894.0,0.258997]
[1727797426536,0.23945404,62895.0,62894.0,0.4154548]
[1727797426754,0.015,62900.0,62898.0,0.158987]
[1727797426966,0.015,62900.0,62898.0,0.258987]
[1727797427636,0.005,62900.0,62898.0,0.258987]
[1727797427858,0.00582,62899.0,62898.0,0.258987]
[1727797428327,0.00082,62899.0,62898.0,0.258987]
[1727797428540,0.00382,62899.0,62898.0,0.258987]
[1727797429208,0.01282,62899.0,62898.0,0.258987]
[1727797429451,0.01482,62899.0,62898.0,0.258987]